bitfinex-derivatives/quotes_SOLF0:USTF0_20251119
["timestamp","ask_amount","ask_price","bid_price","bid_amount"]
[1763570249543,3.07,134.2,134.14,6.7142]
[1763570249544,9.7816,134.2,134.14,6.7142]
[1763570250846,9.7816,134.2,134.11,104.4701]
[1763570251147,6.712,134.19,134.1,120.4948]
[1763570251740,6.7128,134.18,134.1,120.4954]
[1763570251939,3.07,134.18,134.08,104.4905]
[1763570252137,3.07,134.15,134.08,16.0]
[1763570252444,6.7151,134.13,134.03,120.5297]
[1763570252644,3.07,134.13,134.03,120.5293]
[1763570252842,3.07,134.13,134.03,16.0]
[1763570253042,3.07,134.12,134.02,16.0]
[1763570253238,3.07,134.12,134.01,104.5477]
[1763570253239,3.07,134.11,134.03,6.7198]
[1763570253833,3.07,134.11,134.04,6.7193]
[1763570254445,16.0,134.14,134.02,22.44517802]
[1763570254637,3.07,134.15,134.06,104.5049]
[1763570254838,3.07,134.15,134.06,120.5049]
[1763570255045,3.07,134.15,134.07,104.4988]
[1763570255244,3.07,134.15,134.07,104.5008]
[1763570255444,3.07,134.15,134.07,111.17060419]
[1763570255647,6.7126,134.18,134.09,104.4858]
[1763570255844,9.7826,134.18,134.08,104.4937]
[1763570256047,0.0493927,134.14,134.12,0.0529071]
[1763570256246,0.0493927,134.14,134.12,6.7680071]
[1763570256550,12.5,134.21,134.13,104.4536]
[1763570256745,12.5,134.21,134.12,120.5339071]
[1763570256746,3.07,134.22,134.1,111.14240419]
[1763570256950,3.07,134.2,134.1,127.16240419]
[1763570257146,3.07,134.2,134.11,104.469]
[1763570257746,3.08610721,134.17,134.14,0.05372861]
[1763570259548,0.05610721,134.17,134.14,0.05372861]
[1763570259753,3.08610721,134.17,134.14,0.05372861]
[1763570259953,0.05610721,134.17,134.14,0.05372861]
[1763570260341,3.08610721,134.17,134.14,0.05372861]
[1763570260953,0.05610721,134.17,134.14,0.05372861]
[1763570261454,3.08610721,134.17,134.14,0.05372861]
[1763570261656,0.05610721,134.17,134.14,0.05372861]
[1763570262050,0.05610721,134.17,134.14,6.76792861]
[1763570262255,0.05610721,134.17,134.14,0.05372861]
[1763570262960,3.08610721,134.17,134.14,0.05372861]
[1763570263361,0.05610721,134.17,134.14,0.05372861]
[1763570263755,0.05610721,134.17,134.15,6.7138]
[1763570264868,0.05610721,134.17,134.14,0.05372861]
[1763570265754,6.88656205,134.24,134.16,104.4306]
[1763570265962,3.03,134.21,134.14,6.714]
[1763570266165,3.03,134.21,134.11,104.4675]
[1763570266665,3.03,134.21,134.12,104.4621]
[1763570266866,0.05598329,134.18,134.15,6.77020472]
[1763570267467,104.5382,134.03,134.0,9.2461575]
[1763570267674,104.5382,134.03,133.98,13.86923626]
[1763570267675,107.5928,134.0,133.9,3.17]
[1763570267855,114.25660419,134.0,133.9,3.17]
[1763570268168,110.41214964,133.99,133.9,3.17]
[1763570268463,110.41214964,133.99,133.93,0.05671921]
[1763570268464,0.05571272,133.96,133.93,0.05671921]
[1763570268964,0.05571272,133.96,133.93,3.22671921]
[1763570269262,0.05571272,133.96,133.93,0.05671921]
[1763570270960,0.05571272,133.96,133.93,3.22671921]
[1763570273164,3.08571272,133.96,133.93,0.05671921]
[1763570273369,9.03564156,133.96,133.93,0.05671921]
[1763570274367,6.00564156,133.96,133.93,0.05671921]
[1763570274967,9.03564156,133.96,133.93,0.05671921]
[1763570275274,9.03564156,133.96,133.84,3.17]
[1763570275275,107.6361,133.94,133.84,3.17]
[1763570276275,0.05035823,133.9,133.88,0.04985725]
[1763570276761,0.05035823,133.9,133.88,3.21985725]
[1763570278873,0.05035823,133.9,133.88,0.04985725]
[1763570280179,107.71465823,133.9,133.88,0.04985725]
[1763570280379,107.71465823,133.9,133.74,10.48837096]
[1763570280380,104.6589,133.87,133.77,3.17]
[1763570280682,104.6433,133.89,133.79,3.17]
[1763570280869,5.91645639,133.88,133.79,3.17]
[1763570281076,104.6579,133.87,133.79,3.17]
[1763570281281,0.0501389,133.84,133.82,0.05702532]
[1763570281776,0.0501389,133.84,133.82,3.22702532]
[1763570282379,116.86107486,133.9,133.82,3.22702532]
[1763570282380,5.85446016,133.87,133.82,3.22702532]
[1763570282588,118.2583031,133.93,133.83,3.17]
[1763570282589,3.03,133.93,133.83,3.17]
[1763570282773,13.61006205,133.96,133.87,3.17]
[1763570282979,5.85822643,133.95,133.87,3.17]
[1763570283178,5.85822643,133.94,133.87,3.17]
[1763570283381,5.85822643,133.93,133.87,3.17]
[1763570283686,5.91087874,133.92,133.89,0.04890399]
[1763570283872,0.05265231,133.92,133.89,3.21890399]
[1763570284873,5.85225239,133.91,133.89,3.21890399]
[1763570285068,5.85225239,133.9,133.89,3.21890399]
[1763570285272,0.05265231,133.92,133.89,3.21890399]
[1763570285469,5.94662385,133.91,133.89,3.21890399]
[1763570285674,0.05265231,133.92,133.89,3.21890399]
[1763570286578,5.93630278,133.91,133.89,3.21890399]
[1763570286786,0.05265231,133.92,133.89,3.21890399]
[1763570287278,5.93394377,133.91,133.89,3.21890399]
[1763570287473,0.05265231,133.92,133.89,3.21890399]
[1763570287673,5.93196097,133.91,133.89,3.21890399]
[1763570287874,0.05265231,133.92,133.89,3.21890399]
[1763570288087,5.93139552,133.91,133.89,3.21890399]
[1763570288381,0.05265231,133.92,133.89,3.21890399]
[1763570288582,5.92992562,133.91,133.89,3.21890399]
[1763570288778,0.05265231,133.92,133.89,3.21890399]
[1763570289081,5.92759968,133.91,133.89,3.21890399]
[1763570289286,0.05265231,133.92,133.89,3.21890399]
[1763570289787,5.931389,133.91,133.89,3.21890399]
[1763570290087,0.05265231,133.92,133.89,0.04890399]
[1763570290088,5.92963174,133.9,133.89,0.04890399]
[1763570290278,0.05265231,133.92,133.89,3.15890399]
[1763570290580,5.87276137,133.91,133.89,3.15890399]
[1763570290885,0.05265231,133.92,133.89,3.15890399]
[1763570291086,5.86975875,133.91,133.89,3.15890399]
[1763570291287,0.05265231,133.92,133.89,3.15890399]
[1763570291474,6.88656205,133.96,133.89,3.15890399]
[1763570291676,5.82734699,133.95,133.89,3.11]
[1763570291886,3.3,133.99,133.91,3.11]
[1763570292080,5.82749483,133.98,133.91,3.11]
[1763570292287,5.82749483,133.97,133.91,9.8356]
[1763570292487,5.82749483,133.96,133.91,3.11]
[1763570292789,5.82749483,133.96,133.89,104.6375]
[1763570292790,0.05382095,133.95,133.92,3.16578122]
[1763570293084,0.05275527,133.95,133.92,0.04990053]
[1763570293289,9.12660388,133.94,133.92,0.04990053]
[1763570293586,9.12188715,133.93,133.92,0.04990053]
[1763570293988,6.7255,133.92,133.85,3.11]
[1763570294188,5.82106519,133.91,133.85,3.11]
[1763570294489,5.82102973,133.9,133.82,3.11]
[1763570294784,12.54812973,133.89,133.83,3.11]
[1763570294986,5.81908625,133.88,133.83,3.11]
[1763570295179,0.05499825,133.87,133.85,3.16658598]
[1763570296582,0.05499825,133.87,133.85,0.05658598]
[1763570297696,5.81722532,133.86,133.85,0.05658598]
[1763570297997,0.05499825,133.87,133.85,0.05658598]
[1763570298289,5.81914835,133.86,133.85,0.05658598]
[1763570298489,5.81931939,133.86,133.85,0.05658598]
[1763570299291,9.11931939,133.86,133.76,21.94128811]
[1763570299496,6.7296,133.84,133.78,3.11]
[1763570299680,9.11931939,133.85,133.78,3.11]
[1763570299681,5.81931939,133.83,133.78,3.11]
[1763570299886,3.3,133.85,133.78,3.11]
[1763570300188,5.81694041,133.84,133.78,3.11]
[1763570300386,3.3,133.85,133.78,9.8422]
[1763570300587,0.0494697,133.82,133.8,0.04947253]
[1763570301492,3.3494697,133.82,133.8,0.04947253]
[1763570302193,0.0494697,133.82,133.8,0.04947253]
[1763570304089,9.06410712,133.81,133.8,0.04947253]
[1763570304490,9.06410712,133.81,133.73,3.11]
[1763570304691,5.76410712,133.8,133.73,3.11]
[1763570304892,10.0311,133.81,133.73,3.11]
[1763570305094,5.76021006,133.8,133.73,3.11]
[1763570305392,0.05016748,133.78,133.75,3.0800585]
[1763570306297,6.88656205,133.83,133.77,3.03]
[1763570306490,5.7672644,133.82,133.77,3.03]
[1763570306688,5.7672644,133.81,133.78,3.03]
[1763570306892,5.7672644,133.8,133.78,3.03]
[1763570307196,6.88656205,133.85,133.78,3.03]
[1763570307392,0.05371344,133.83,133.8,9.80928896]
[1763570307593,5.77905521,133.82,133.8,9.80928896]
[1763570307801,0.05371344,133.83,133.8,9.80928896]
[1763570307998,5.77566099,133.82,133.8,9.80928896]
[1763570308202,0.05371344,133.83,133.81,3.03]
[1763570308392,5.78217626,133.82,133.81,3.03]
[1763570309096,5.78217626,133.82,133.8,9.80928896]
[1763570309307,5.78217626,133.81,133.8,3.07788896]
[1763570310697,6.94027549,133.83,133.82,3.03]
[1763570310898,6.88656205,133.85,133.82,107.7221]
[1763570311099,6.88656205,133.86,133.83,3.03]
[1763570311398,6.83294303,133.85,133.83,3.03]
[1763570311602,6.83294303,133.86,133.8,3.03]
[1763570311799,6.83294303,133.86,133.8,9.7611]
[1763570312004,6.83294303,133.83,133.82,0.05443192]
[1763570312199,9.19287486,133.83,133.79,3.03]
[1763570312498,6.84845047,133.8,133.78,6.7323]
[1763570312693,6.84845047,133.8,133.76,3.03]
[1763570313093,6.84845047,133.79,133.76,6.7332]
[1763570313297,6.89926215,133.79,133.76,3.08456293]
[1763570313896,6.89926215,133.79,133.77,3.03]
[1763570314101,0.05081168,133.79,133.77,3.03]
[1763570314399,0.05081168,133.79,133.77,9.7629]
[1763570314604,0.05081168,133.79,133.78,3.03]
[1763570314997,0.05081168,133.79,133.77,6.7329]
[1763570315195,6.89926215,133.79,133.76,16.19456293]
[1763570315396,6.89926215,133.79,133.76,19.22456293]
[1763570315607,10.04845047,133.78,133.76,0.05456293]
[1763570316813,6.84845047,133.77,133.76,0.05456293]
[1763570317207,6.84845047,133.78,133.76,0.05456293]
[1763570317405,6.84845047,133.77,133.76,0.05456293]
[1763570319494,6.84845047,133.77,133.76,3.34456293]
[1763570319700,6.84845047,133.78,133.76,10.07766293]
[1763570319901,6.89926215,133.79,133.76,10.07766293]
[1763570320604,0.05081168,133.79,133.78,3.29]
[1763570321011,0.05081168,133.79,133.77,6.7329]
[1763570321205,0.05081168,133.79,133.76,0.05456293]
[1763570321810,0.05081168,133.79,133.76,3.34456293]
[1763570322106,0.05081168,133.79,133.78,3.29]
[1763570322713,6.84845047,133.85,133.8,3.29]
[1763570323012,5.69101583,133.84,133.81,3.29]
[1763570323199,5.69101583,133.83,133.81,6.7308]
[1763570323400,5.69101583,133.82,133.8,3.29]
[1763570323603,5.69101583,133.81,133.8,3.29]
[1763570323807,0.04870772,133.82,133.8,3.33698295]
[1763570324212,0.04870772,133.82,133.8,0.04698295]
[1763570324604,0.04870772,133.82,133.8,3.33698295]
[1763570325111,0.04870772,133.82,133.81,3.29]
[1763570325317,6.84845047,133.88,133.81,3.29]
[1763570325513,5.6888201,133.87,133.82,3.29]
[1763570325812,5.69143057,133.86,133.82,3.29]
[1763570326014,3.14,133.89,133.82,3.29]
[1763570326209,6.84845047,133.9,133.81,3.29]
[1763570326210,3.14,133.87,133.81,3.29]
[1763570326412,3.19134785,133.85,133.83,0.04771749]
[1763570326607,13.57575047,133.89,133.83,0.04771749]
[1763570326916,0.05623531,133.85,133.83,0.04771749]
[1763570327118,0.05456251,133.85,133.83,0.04771749]
[1763570327919,3.19456251,133.85,133.83,0.04771749]
[1763570328917,3.19456251,133.85,133.73,10.48837096]
[1763570328918,3.14,133.84,133.74,3.29]
[1763570329215,9.8707,133.82,133.76,6.7334]
[1763570329816,9.8707,133.82,133.74,19.39]
[1763570330017,3.19080235,133.8,133.78,0.0528593]
[1763570330808,0.05080235,133.8,133.78,0.0528593]
[1763570331606,3.19080235,133.8,133.78,0.0528593]
[1763570332113,0.05080235,133.8,133.78,0.0528593]
[1763570332307,3.19080235,133.8,133.78,0.0528593]
[1763570332504,3.14,133.79,133.78,0.0528593]
[1763570333214,0.05080235,133.8,133.78,0.0528593]
[1763570333420,3.19080235,133.8,133.78,0.0528593]
[1763570334010,0.05080235,133.8,133.78,3.3428593]
[1763570334606,0.05080235,133.8,133.78,19.4428593]
[1763570334806,0.05080235,133.8,133.78,26.1751593]
[1763570335516,0.05080235,133.8,133.78,6.7851593]
[1763570336021,0.05080235,133.8,133.78,0.0528593]
[1763570336215,0.05080235,133.8,133.78,3.3428593]
[1763570336417,0.05080235,133.8,133.78,0.0528593]
[1763570337520,0.05080235,133.8,133.78,3.3428593]
[1763570337916,0.05080235,133.8,133.79,3.29]
[1763570338324,3.14,133.87,133.82,6.7303]
[1763570338513,3.14,133.87,133.79,3.29]
[1763570338915,3.14,133.87,133.79,10.0217]
[1763570339416,3.19446105,133.84,133.82,0.0514125]
[1763570341123,0.05446105,133.84,133.82,3.3414125]
[1763570341420,3.14,133.9,133.83,3.29]
[1763570341620,3.14,133.93,133.85,107.9562]
[1763570341824,9.98845047,133.97,133.88,3.29]
[1763570342012,3.14,133.97,133.89,10.0168]
[1763570342214,3.14,133.97,133.91,3.29]
[1763570342420,3.14,134.01,133.92,107.9052]
[1763570342621,0.04721657,133.98,133.95,0.05735467]
[1763570342811,3.18721657,133.98,133.95,0.05735467]
[1763570343219,0.04721657,133.98,133.95,0.05735467]
[1763570343428,3.18721657,133.98,133.95,0.05735467]
[1763570344417,3.14,133.96,133.87,3.29]
[1763570345029,3.14,133.96,133.88,3.29]
[1763570345222,6.70511226,134.01,133.89,107.9307]
[1763570345419,0.04859688,133.96,133.94,0.05737941]
[1763570345619,3.14,134.0,133.94,0.05737941]
[1763570345819,3.14,133.97,133.94,0.05737941]
[1763570346022,0.05493663,133.98,133.94,3.34737941]
[1763570346627,0.05493663,133.98,133.95,3.29]
[1763570347028,3.14,134.1,134.02,3.29]
[1763570347931,0.05480824,134.07,134.05,0.0473113]
[1763570348227,3.09480824,134.07,134.05,0.0473113]
[1763570349028,0.05480824,134.07,134.05,0.0473113]
[1763570349225,0.05480824,134.07,134.05,3.2473113]
[1763570349430,3.04,134.14,134.07,107.7001]
[1763570349631,3.04,134.17,133.97,9.24254889]
[1763570349831,3.04,134.12,134.01,107.7473]
[1763570350134,3.04,134.12,134.02,9.92]
[1763570350328,0.05162947,134.08,134.06,0.05733983]
[1763570350833,0.05162947,134.08,134.06,3.25733983]
[1763570351025,3.04,134.16,134.08,104.4876]
[1763570351227,3.04,134.16,134.09,3.2]
[1763570351622,3.04,134.16,134.05,9.90511226]
[1763570351827,9.7553,134.13,134.05,3.2]
[1763570352032,3.04,134.09,134.01,3.2]
[1763570352429,3.04,134.09,133.97,9.9227]
[1763570352430,3.04,134.07,133.97,9.9227]
[1763570352633,3.04,134.05,133.97,19.38]
[1763570352832,3.04,134.05,133.97,3.2]
[1763570353038,3.04,134.04,133.93,123.9873]
[1763570353233,3.09386197,134.02,133.94,6.7241]
[1763570353427,3.09386197,134.02,133.97,0.04700518]
[1763570353628,0.04747004,134.01,133.97,3.24700518]
[1763570353838,3.04,134.09,133.99,107.7633]
[1763570354347,3.04,134.09,134.0,107.7527]
[1763570354535,3.04,134.09,134.01,16.18]
[1763570354842,0.04807945,134.06,134.04,0.05598277]
[1763570355034,3.04,134.12,134.04,3.25598277]
[1763570355429,3.04,134.16,134.07,3.2]
[1763570355637,3.04,134.16,134.08,3.2]
[1763570355836,3.04,134.16,134.08,9.917]
[1763570356138,3.04,134.16,134.11,0.05698038]
[1763570356540,3.04,134.19,134.11,3.25698038]
[1763570356734,3.04,134.19,134.14,0.0550648]
[1763570357439,3.04,134.17,134.14,0.0550648]
[1763570357737,3.04,134.15,134.14,0.0550648]
[1763570357938,3.04,134.15,134.01,104.5458]
[1763570357939,3.04,134.11,134.01,3.2]
[1763570358327,3.04,134.1,134.01,19.36]
[1763570358536,3.04,134.1,134.01,3.2]
[1763570358846,0.047099,134.07,134.04,0.04744931]
[1763570359037,3.087099,134.07,134.04,0.04744931]
[1763570359234,3.04,134.06,133.98,3.2]
[1763570359436,9.7588,134.06,133.98,3.2]
[1763570359840,9.7587,134.06,133.98,3.2]
[1763570360242,0.0554717,134.03,134.01,0.05586134]
[1763570360843,0.0554717,134.03,134.01,3.25586134]
[1763570361443,0.0554717,134.03,134.01,0.05586134]
[1763570361645,0.0554717,134.03,134.01,3.25586134]
[1763570362237,0.0554717,134.03,134.01,0.05586134]
[1763570362648,3.0954717,134.03,134.01,0.05586134]
[1763570363052,0.0554717,134.03,134.01,0.05586134]
[1763570363941,3.0954717,134.03,134.01,0.05586134]
[1763570364139,3.04,134.02,133.93,3.2]
[1763570364742,9.7607,134.02,133.93,3.2]
[1763570365246,3.09596852,133.99,133.96,0.05243815]
[1763570365947,0.05596852,133.99,133.96,0.05243815]
[1763570367844,0.05596852,133.99,133.96,3.34243815]
[1763570368452,0.05596852,133.99,133.96,0.05243815]
[1763570368646,0.05596852,133.99,133.97,3.29]
[1763570369160,0.05596852,133.99,133.96,0.05243815]
[1763570369452,0.05596852,133.99,133.96,3.34243815]
[1763570369651,0.05596852,133.99,133.96,0.05243815]
[1763570369848,3.15596852,133.99,133.96,0.05243815]
[1763570370856,9.87806852,133.99,133.96,0.05243815]
[1763570371156,3.1,133.97,133.84,104.678]
[1763570371346,3.1,133.97,133.87,3.29]
[1763570371552,3.1,133.97,133.87,10.0177]
[1763570371741,3.1,133.97,133.87,3.29]
[1763570371942,3.15005323,133.93,133.91,0.05666883]
[1763570373150,3.15005323,133.93,133.79,118.179]
[1763570373151,3.15005323,133.93,133.83,92.95]
[1763570373351,3.1,133.93,133.87,3.29]
[1763570373554,9.8241,133.95,133.87,3.29]
[1763570373755,3.1,133.95,133.88,6.7271]
[1763570374259,3.15571555,133.93,133.9,0.04737662]
[1763570374461,3.15264978,133.93,133.9,0.05302053]
[1763570374953,0.05264978,133.93,133.9,0.05302053]
[1763570375345,0.05264978,133.93,133.9,10.06902053]
[1763570375653,0.05264978,133.93,133.91,3.29]
[1763570376053,3.1,133.97,133.91,10.0158]
[1763570376253,3.1,133.97,133.91,3.29]
[1763570376560,19.24,134.0,133.92,6.7252]
[1763570376756,3.1,133.99,133.91,3.29]
[1763570376952,3.1,133.99,133.91,10.0158]
[1763570377158,0.0499044,133.96,133.94,0.04920605]
[1763570377558,3.1499044,133.96,133.94,0.04920605]
[1763570377964,0.0499044,133.96,133.94,0.04920605]
[1763570379466,3.0999044,133.96,133.94,0.04920605]
[1763570379762,3.0999044,133.96,133.87,3.18]
[1763570379966,3.05,133.96,133.87,3.18]
[1763570380159,3.05,133.93,133.84,41.95251224]
[1763570380358,3.05,133.93,133.85,3.18]
[1763570380752,3.10030542,133.9,133.88,0.05259387]
[1763570381055,3.09920536,133.9,133.88,0.05259387]
[1763570381258,3.05,133.89,133.88,0.05259387]
[1763570382764,0.04920536,133.9,133.88,0.05259387]
[1763570383372,3.09920536,133.9,133.88,0.05259387]
[1763570384769,3.09920536,133.9,133.81,3.18]
[1763570384970,3.09920536,133.9,133.82,107.876]
[1763570384971,3.05,133.9,133.82,107.876]
[1763570385366,3.05,133.9,133.82,3.18]
[1763570385666,3.05,133.93,133.85,0.04818071]
[1763570385866,3.05,133.93,133.85,3.22818071]
[1763570386167,0.05030534,133.9,133.85,3.22818071]
[1763570386463,0.05030534,133.9,133.85,0.04818071]
[1763570386669,0.05030534,133.9,133.85,3.22818071]
[1763570386869,3.10030534,133.9,133.85,3.22818071]
[1763570387766,0.05030534,133.9,133.87,9.9078]
[1763570388071,0.05030534,133.9,133.87,3.18]
[1763570388366,0.05030534,133.9,133.87,9.9079]
[1763570388772,0.05030534,133.9,133.88,3.18]
[1763570389076,0.05030534,133.9,133.88,9.9072]
[1763570390175,0.05030534,133.9,133.86,9.9082]
[1763570390372,0.05030534,133.9,133.87,3.18]
[1763570390672,0.05030534,133.9,133.85,3.22818071]
[1763570391068,0.05030534,133.9,133.86,3.18]
[1763570393279,3.10030534,133.9,133.86,3.18]
[1763570393466,3.10030534,133.9,133.86,9.9083]
[1763570394172,3.10030534,133.9,133.86,6.7283]
[1763570394675,3.10030534,133.9,133.85,0.04818071]
[1763570396669,3.05,133.89,133.85,0.04818071]
[1763570398172,0.05030534,133.9,133.85,3.22818071]
[1763570398369,3.10030534,133.9,133.85,3.22818071]
[1763570398571,3.10030534,133.9,133.85,9.95708071]
[1763570398972,3.10030534,133.9,133.85,3.22818071]
[1763570399176,3.10030534,133.9,133.85,0.04818071]
[1763570400776,3.05,133.88,133.85,0.04818071]
[1763570401283,3.05,133.87,133.85,0.04818071]
[1763570402979,3.05,133.89,133.86,6.7284]
[1763570403181,3.05,133.89,133.85,0.04818071]
[1763570403580,3.05,133.89,133.85,3.22818071]
[1763570403781,0.05030534,133.9,133.85,107.89828071]
[1763570403977,0.05030534,133.9,133.86,3.18]
[1763570404478,3.10030534,133.9,133.85,0.04818071]
[1763570404884,9.82680534,133.9,133.85,0.04818071]
[1763570405192,3.05,133.89,133.85,0.04818071]
[1763570405384,3.05,133.88,133.85,0.04818071]
[1763570406076,3.05,133.88,133.76,104.7372]
[1763570406077,3.05,133.83,133.76,3.18]
[1763570406608,3.05,133.83,133.77,3.18]
[1763570406718,3.05,133.83,133.74,3.18]
[1763570407180,3.09712613,133.8,133.77,0.05598952]
[1763570407290,3.0972946,133.8,133.77,0.05658109]
[1763570409292,9.8288946,133.8,133.77,0.05658109]
[1763570409495,3.0972946,133.8,133.77,0.05658109]
[1763570410494,3.0972946,133.8,133.71,2.03003734]
[1763570410495,3.19,133.78,133.71,2.03003734]
[1763570410699,3.19,133.75,133.71,2.03003734]
[1763570411593,3.24366987,133.74,133.72,0.05048883]
[1763570411804,3.23887397,133.74,133.72,0.05201396]
[1763570413597,3.23887397,133.74,133.64,124.2517]
[1763570413802,3.23887397,133.74,133.6,104.8671]
[1763570413803,3.19,133.72,133.61,108.2009]
[1763570414298,3.19,133.7,133.61,130.99538014]
[1763570414503,3.19,133.7,133.62,108.1894]
[1763570414796,0.05009204,133.67,133.65,3.3947751]
[1763570415388,0.05009204,133.67,133.65,111.6229751]
[1763570415598,3.19,133.73,133.66,3.34]
[1763570415893,3.19,133.73,133.67,3.34]
[1763570416598,0.05730416,133.71,133.69,3.39340588]
[1763570416801,0.04827384,133.71,133.69,0.05456897]
[1763570417102,3.23827384,133.71,133.69,0.05456897]
[1763570417500,3.19,133.69,133.58,3.34]
[1763570417891,3.19,133.69,133.59,3.34]
[1763570418409,0.04919459,133.65,133.63,0.05528199]
[1763570418598,3.23919459,133.65,133.63,0.05528199]
[1763570419203,3.23919459,133.65,133.56,3.34]
[1763570419393,3.19,133.65,133.56,3.34]
[1763570419590,3.19,133.63,133.52,3.34]
[1763570419803,3.19,133.63,133.52,108.2685]
[1763570420103,3.19,133.63,133.53,108.2612]
[1763570420303,3.24465067,133.59,133.57,0.05131173]
[1763570420503,3.23773658,133.59,133.57,0.05428123]
[1763570420903,3.23773658,133.59,133.5,16.1]
[1763570421105,3.19,133.59,133.5,16.1]
[1763570421308,3.19,133.59,133.46,104.9751]
[1763570421309,3.19,133.54,133.45,3.34]
[1763570422004,120.9888,133.58,133.49,108.2951]
[1763570422005,0.04822184,133.51,133.49,108.2951]
[1763570422212,3.19,133.58,133.5,3.34]
[1763570422405,3.19,133.58,133.5,10.0864]
[1763570422610,3.19,133.58,133.5,108.2827]
[1763570422810,3.19,133.63,133.53,108.2625]
[1763570423006,3.19,133.63,133.56,6.7433]
[1763570423206,3.23880185,133.61,133.58,0.05445238]
[1763570423603,3.23880185,133.61,133.58,3.09445238]
[1763570423604,0.04880185,133.61,133.58,3.09445238]
[1763570423807,0.04880185,133.61,133.58,0.05445238]
[1763570424205,3.23880185,133.61,133.58,0.05445238]
[1763570425314,0.04880185,133.61,133.58,0.05445238]
[1763570427012,3.17880185,133.61,133.58,0.05445238]
[1763570429211,3.13,133.59,133.48,108.308]
[1763570429510,3.13,133.56,133.48,3.35]
[1763570430113,0.05622044,133.53,133.51,0.05318984]
[1763570430518,0.05622044,133.53,133.51,3.40318984]
[1763570431011,0.05622044,133.53,133.51,0.05318984]
[1763570431511,0.05622044,133.53,133.51,3.40318984]
[1763570431809,0.05622044,133.53,133.51,10.14908984]
[1763570432201,0.05622044,133.53,133.51,0.05318984]
[1763570432606,0.05622044,133.53,133.51,3.40318984]
[1763570433110,3.13,133.59,133.52,108.2813]
[1763570433309,3.13,133.59,133.52,3.35]
[1763570433822,3.13,133.59,133.53,6.7449]
[1763570434017,3.13,133.59,133.52,3.35]
[1763570434218,3.18404766,133.57,133.54,0.05131135]
[1763570434519,0.05404766,133.57,133.54,0.05131135]
[1763570434815,3.18404766,133.57,133.54,0.05131135]
[1763570435215,0.05404766,133.57,133.54,3.40131135]
[1763570436213,3.25404766,133.57,133.54,0.05131135]
[1763570439210,3.40404766,133.57,133.54,0.05131135]
[1763570440015,0.05404766,133.57,133.54,0.05131135]
[1763570440207,0.05404766,133.57,133.54,3.23131135]
[1763570440412,0.05404766,133.57,133.54,0.05131135]
[1763570440716,3.40404766,133.57,133.54,0.05131135]
[1763570441824,10.14724766,133.57,133.54,0.05131135]
[1763570442017,3.35,133.56,133.54,0.05131135]
[1763570443614,6.7442,133.55,133.48,9.9275]
[1763570443924,3.35,133.54,133.48,9.9275]
[1763570444123,3.35,133.54,133.48,6.7475]
[1763570444513,3.35,133.54,133.49,3.18]
[1763570444715,0.05342033,133.53,133.5,0.05018074]
[1763570445024,3.40342033,133.53,133.5,0.05018074]
[1763570446220,0.05342033,133.53,133.5,108.17518074]
[1763570446517,3.35,133.6,133.53,3.18]
[1763570447426,3.4022261,133.58,133.55,0.05256619]
[1763570447612,3.40402722,133.58,133.55,0.05187827]
[1763570447813,10.14672722,133.58,133.55,0.05187827]
[1763570448109,3.40402722,133.58,133.55,0.05187827]
[1763570449323,3.35,133.56,133.46,3.18]
[1763570449723,3.35,133.56,133.47,108.1485]
[1763570450115,3.35,133.55,133.47,3.18]
[1763570450315,0.05401794,133.52,133.5,0.05704865]
[1763570451409,0.05401794,133.52,133.5,6.80354865]
[1763570451609,0.05401794,133.52,133.51,3.18]
[1763570453620,0.05401794,133.52,133.5,0.05704865]
[1763570454924,0.05401794,133.52,133.5,6.80364865]
[1763570455426,0.05401794,133.52,133.5,9.98364865]
[1763570456128,0.05401794,133.52,133.5,0.05704865]
[1763570456525,3.40401794,133.52,133.5,0.05704865]
[1763570456829,0.05401794,133.52,133.5,0.05704865]
[1763570457229,0.05401794,133.52,133.5,3.23704865]
[1763570458312,0.05401794,133.52,133.51,3.18]